fUSD/lending_fUSD_20260611
["ID","MTS","AMOUNT","RATE_DAILY","PERIOD"]
[424828018,1781190638000,-1123.58,0.00013883,2]
[424828001,1781190638000,-500.0,0.00013883,2]
[424828009,1781190638000,-1123.58,0.00013883,2]
[424828007,1781190638000,-509.08024847,0.00013883,2]
[424827999,1781190638000,-500.0,0.00013883,2]
[424827993,1781190638000,-500.0,0.00013883,2]
[424827995,1781190638000,-500.0,0.00013883,2]
[424827989,1781190638000,-500.0,0.00013883,2]
[424827977,1781190638000,-500.0,0.00013883,2]
[424827991,1781190638000,-500.0,0.00013883,2]
[424827997,1781190638000,-500.0,0.00013883,2]
[424828099,1781190639000,-150.0,0.00014154,2]
[424828100,1781190639000,-150.0,0.00014156,2]
[424828098,1781190639000,-150.0,0.00014133,2]
[424828101,1781190639000,-2889.5799969,0.00014157,2]
[424828112,1781190639000,-150.0,0.00014237,2]
[424828111,1781190639000,-150.0,0.00014237,2]
[424828103,1781190639000,-150.0,0.00014179,2]
[424828102,1781190639000,-13771.21791759,0.00014177,2]
[424828104,1781190639000,-150.0,0.00014179,2]
[424828105,1781190639000,-150.0,0.00014179,2]
[424828115,1781190639000,-150.0,0.00014249,2]
[424828109,1781190639000,-150.0,0.00014225,2]
[424828110,1781190639000,-150.0,0.00014237,2]
[424828107,1781190639000,-15000.0,0.000142,5]
[424828108,1781190639000,-150.0,0.00014202,2]
[424828113,1781190639000,-150.0,0.00014237,2]
[424828114,1781190639000,-36529.57274095,0.0001424,2]
[424828117,1781190639000,-500.0,0.00014279,2]
[424828124,1781190639000,-503.23187331,0.00014279,2]
[424828097,1781190639000,-1978.2498361,0.00014111,2]
[424828120,1781190639000,-534.08043595,0.00014279,2]
[424828106,1781190639000,-150.0,0.00014187,2]
[424828096,1781190639000,-150.0,0.0001411,2]
[424828077,1781190639000,-150.0,0.00013972,2]
[424828094,1781190639000,-150.0,0.00014087,2]
[424828119,1781190639000,-500.0,0.00014279,2]
[424828073,1781190639000,-150.0,0.00013949,2]
[424828079,1781190639000,-150.0,0.00013987,2]
[424828078,1781190639000,-150.0,0.00013987,2]
[424828074,1781190639000,-2000.0,0.0001397,2]
[424828075,1781190639000,-500.0,0.0001397,2]
[424828072,1781190639000,-150.0,0.00013949,2]
[424828076,1781190639000,-2889.5799969,0.00013971,2]
[424828080,1781190639000,-500.0,0.00013989,2]
[424828082,1781190639000,-150.0,0.00013995,2]
[424828095,1781190639000,-150.0,0.00014087,2]
[424828081,1781190639000,-27078.44697467,0.0001399,2]
[424828083,1781190639000,-1500.0,0.00014,2]
[424828088,1781190639000,-500.0,0.00014036,2]
[424828087,1781190639000,-13771.21791759,0.00014033,2]
[424828090,1781190639000,-150.0,0.00014064,2]
[424828084,1781190639000,-1555.5,0.00014018,2]
[424828091,1781190639000,-150.0,0.00014064,2]
[424828086,1781190639000,-36529.57274095,0.0001402,2]
[424828089,1781190639000,-150.0,0.00014041,2]
[424828093,1781190639000,-150.0,0.0001407,2]
[424828092,1781190639000,-150.0,0.00014064,2]
[424828085,1781190639000,-150.0,0.00014018,2]
[424828122,1781190639000,-206.86226619,0.00014279,2]
[424828172,1781190639000,-13771.21791759,0.00014466,2]
[424828116,1781190639000,-150.0,0.00014272,2]
[424828158,1781190639000,-30000.0,0.000144,5]
[424828153,1781190639000,-150.0,0.00014387,2]
[424828150,1781190639000,-164.418332,0.00014362,2]
[424828154,1781190639000,-150.0,0.00014387,2]
[424828148,1781190639000,-150.0,0.00014341,2]
[424828149,1781190639000,-2889.5799969,0.00014342,2]
[424828151,1781190639000,-165.806287,0.00014362,2]
[424828152,1781190639000,-150.0,0.00014364,2]
[424828156,1781190639000,-725.37,0.00014396,2]
[424828157,1781190639000,-1240.73551738,0.000144,2]
[424828155,1781190639000,-10482.63494594,0.0001439,2]
[424828162,1781190639000,-150.0,0.00014404,2]
[424828173,1781190639000,-150.0,0.00014479,2]
[424828163,1781190639000,-150.0,0.0001441,2]
[424828169,1781190639000,-150.0,0.00014456,2]
[424828167,1781190639000,-375.817597,0.00014434,2]
[424828170,1781190639000,-500.0,0.00014459,2]
[424828168,1781190639000,-355.443661,0.00014445,2]
[424828171,1781190639000,-36529.57274095,0.0001446,2]
[424828165,1781190639000,-150.0,0.0001441,2]
[424828174,1781190639000,-150.0,0.00014487,2]
[424828118,1781190639000,-500.0,0.00014279,2]
[424828166,1781190639000,-150.0,0.00014433,2]
[424828159,1781190639000,-154.38,0.00014401,2]
[424828164,1781190639000,-150.0,0.0001441,2]
[424828147,1781190639000,-172.99,0.00014323,2]
[424828121,1781190639000,-500.0,0.00014279,2]
[424828146,1781190639000,-13771.21791759,0.00014322,2]
[424828123,1781190639000,-500.0,0.00014279,2]
[424828135,1781190639000,-500.0,0.00014283,2]
[424828126,1781190639000,-500.0,0.00014279,2]
[424828134,1781190639000,-503.62,0.00014279,2]
[424828127,1781190639000,-500.0,0.00014279,2]
[424828128,1781190639000,-500.0,0.00014279,2]
[424828130,1781190639000,-500.0,0.00014279,2]
[424828129,1781190639000,-694.41,0.00014279,2]
[424828132,1781190639000,-500.0,0.00014279,2]
[424828125,1781190639000,-500.0,0.00014279,2]
[424828131,1781190639000,-500.0,0.00014279,2]
[424828133,1781190639000,-500.0,0.00014279,2]
[424828137,1781190639000,-500.0,0.00014283,2]
[424828139,1781190639000,-150.0,0.00014287,2]
[424828138,1781190639000,-4108.632263,0.00014284,2]
[424828141,1781190639000,-150.0,0.00014295,2]
[424828140,1781190639000,-150.0,0.00014295,2]
[424828143,1781190639000,-22500.0,0.000143,5]
[424828144,1781190639000,-150.0,0.00014318,2]
[424828142,1781190639000,-150.0,0.00014295,2]
[424828145,1781190639000,-150.0,0.0001432,2]
[424828216,1781190640000,-500.0,0.00014651,2]
[424828219,1781190640000,-150.0,0.00014653,2]
[424828214,1781190640000,-500.0,0.00014651,2]
[424828215,1781190640000,-500.0,0.00014651,2]
[424828213,1781190640000,-694.41,0.00014651,2]
[424828204,1781190640000,-500.0,0.00014651,2]
[424828209,1781190640000,-500.0,0.00014651,2]
[424828205,1781190640000,-500.0,0.00014651,2]
[424828203,1781190640000,-150.0,0.0001464,2]
[424828206,1781190640000,-500.0,0.00014651,2]
[424828218,1781190640000,-503.62,0.00014651,2]
[424828211,1781190640000,-500.0,0.00014651,2]
[424828217,1781190640000,-510.071533,0.00014651,2]
[424828229,1781190640000,-150.0,0.0001471,2]
[424828210,1781190640000,-500.0,0.00014651,2]
[424828222,1781190640000,-150.0,0.00014687,2]
[424828221,1781190640000,-36529.57274095,0.0001468,2]
[424828232,1781190640000,-150.0,0.00014737,2]
[424828223,1781190640000,-150.0,0.00014687,2]
[424828224,1781190640000,-500.0,0.00014699,2]
[424828225,1781190640000,-500.0,0.00014699,2]
[424828228,1781190640000,-1000.0,0.00014703,2]
[424828226,1781190640000,-745.81400058,0.000147,2]
[424828230,1781190640000,-2889.5799969,0.00014714,2]
[424828231,1781190640000,-150.0,0.00014733,2]
[424828207,1781190640000,-500.0,0.00014651,2]
[424828220,1781190640000,-150.0,0.00014664,2]
[424828202,1781190640000,-150.0,0.0001464,2]
[424828177,1781190640000,-150.0,0.00014502,2]
[424828200,1781190640000,-200.39203949,0.00014627,2]
[424828227,1781190640000,-7500.0,0.000147,5]
[424828184,1781190640000,-150.0,0.0001457,2]
[424828175,1781190640000,-150.0,0.00014487,2]
[424828183,1781190640000,-1613.0535,0.00014566,2]
[424828176,1781190640000,-37600.0,0.000145,5]
[424828178,1781190640000,-150.0,0.00014525,2]
[424828180,1781190640000,-150.0,0.00014525,2]
[424828181,1781190640000,-2889.5799969,0.00014528,2]
[424828182,1781190640000,-150.0,0.00014548,2]
[424828179,1781190640000,-150.0,0.00014525,2]
[424828185,1781190640000,-150.0,0.00014571,2]
[424828192,1781190640000,-500.0,0.00014599,2]
[424828201,1781190640000,-150.0,0.0001464,2]
[424828187,1781190640000,-150.0,0.00014594,2]
[424828195,1781190640000,-7500.0,0.000146,5]
[424828193,1781190640000,-500.0,0.00014599,2]
[424828186,1781190640000,-150.0,0.00014587,2]
[424828190,1781190640000,-500.0,0.00014599,2]
[424828191,1781190640000,-500.0,0.00014599,2]
[424828189,1781190640000,-500.0,0.00014599,2]
[424828196,1781190640000,-13771.21791759,0.00014611,2]
[424828194,1781190640000,-2000.0,0.000146,2]
[424828198,1781190640000,-151.0,0.00014627,2]
[424828208,1781190640000,-500.0,0.00014651,2]
[424828197,1781190640000,-150.0,0.00014617,2]
[424828199,1781190640000,-156.587,0.00014627,2]
[424828188,1781190640000,-349.53420335,0.00014599,2]
[424828233,1781190640000,-13771.21791759,0.00014755,2]
[424828212,1781190640000,-500.0,0.00014651,2]
[424828240,1781190640000,-1199.99999904,0.000148,2]
[424828267,1781190640000,-150.0,0.00014871,2]
[424828266,1781190640000,-150.0,0.00014871,2]
[424828264,1781190640000,-5800.0,0.00014866,2]
[424828269,1781190640000,-200.0,0.00014879,2]
[424828272,1781190640000,-150.0,0.00014886,2]
[424828273,1781190640000,-500.0,0.0001489,2]
[424828275,1781190640000,-301.18496682,0.0001489,2]
[424828277,1781190640000,-5800.0,0.00014891,2]
[424828270,1781190640000,-5800.0,0.00014883,2]
[424828279,1781190640000,-150.0,0.00014894,2]
[424828288,1781190640000,-854.12400625,0.00014899,2]
[424828287,1781190640000,-854.12400625,0.00014899,2]
[424828281,1781190640000,-854.12400628,0.00014898,2]
[424828283,1781190640000,-1123.43680368,0.00014898,2]
[424828289,1781190640000,-1123.43680366,0.00014899,2]
[424828292,1781190640000,-31561.261,0.000149,2]
[424828293,1781190640000,-10819.58354044,0.000149,2]
[424828300,1781190640000,-7500.0,0.000149,5]
[424828296,1781190640000,-5800.0,0.000149,2]
[424828295,1781190640000,-24697.50973962,0.000149,3]
[424828291,1781190640000,-854.12400625,0.000149,2]
[424828301,1781190640000,-3881.7829395,0.000149,2]
[424828294,1781190640000,-854.12400625,0.000149,2]
[424828297,1781190640000,-1123.43680366,0.000149,2]
[424828290,1781190640000,-854.12400625,0.00014899,2]
[424828298,1781190640000,-36529.57274095,0.000149,2]
[424828236,1781190640000,-150.0,0.00014756,2]
[424828260,1781190640000,-2159.51383286,0.00014858,2]
[424828265,1781190640000,-150.0,0.00014871,2]
[424828285,1781190640000,-854.12400625,0.00014898,2]
[424828261,1781190640000,-3640.48616714,0.00014858,2]
[424828237,1781190640000,-150.0,0.00014779,2]
[424828263,1781190640000,-200.0,0.00014862,2]
[424828235,1781190640000,-150.0,0.00014756,2]
[424828241,1781190640000,-7500.0,0.000148,5]
[424828238,1781190640000,-150.0,0.00014786,2]
[424828239,1781190640000,-350.0,0.000148,2]
[424828242,1781190640000,-150.0,0.00014802,2]
[424828234,1781190640000,-150.0,0.00014756,2]
[424828245,1781190640000,-4119.458,0.00014816,2]
[424828244,1781190640000,-5800.0,0.00014815,2]
[424828256,1781190640000,-150.0,0.00014848,2]
[424828255,1781190640000,-200.0,0.00014845,2]
[424828257,1781190640000,-5800.0,0.00014849,2]
[424828246,1781190640000,-242.25,0.00014816,2]
[424828243,1781190640000,-200.0,0.00014808,2]
[424828262,1781190640000,-378.1732,0.0001486,2]
[424828247,1781190640000,-150.0,0.0001482,2]
[424828259,1781190640000,-378.1732,0.0001485,2]
[424828258,1781190640000,-378.1732,0.0001485,2]
[424828252,1781190640000,-803.3,0.0001484,2]
[424828268,1781190640000,-5800.0,0.00014874,2]
[424828254,1781190640000,-5800.0,0.00014841,2]
[424828253,1781190640000,-367.77338711,0.0001484,2]
[424828299,1781190640000,-13771.21791759,0.000149,2]
[424828251,1781190640000,-1123.58,0.0001484,2]
[424828249,1781190640000,-150.0,0.00014825,2]
[424828248,1781190640000,-5800.0,0.00014823,2]
[424828250,1781190640000,-5800.0,0.00014832,2]
[424828358,1781190641000,-500.0,0.00014988,2]
[424828352,1781190641000,-500.0,0.00014988,2]
[424828360,1781190641000,-503.62,0.00014988,2]
[424828361,1781190641000,-115968.91106027,0.00014989,2]
[424828353,1781190641000,-500.0,0.00014988,2]
[424828345,1781190641000,-500.0,0.00014988,2]
[424828341,1781190641000,-500.0,0.00014988,2]
[424828335,1781190641000,-500.0,0.00014988,2]
[424828338,1781190641000,-500.0,0.00014988,2]
[424828336,1781190641000,-500.0,0.00014988,2]
[424828363,1781190641000,-301.18496682,0.0001499,2]
[424828355,1781190641000,-500.0,0.00014988,2]
[424828362,1781190641000,-301.18496682,0.0001499,2]
[424828374,1781190641000,-500.0,0.00014997,2]
[424828364,1781190641000,-662.2602002,0.00014996,2]
[424828365,1781190641000,-1847.2875965,0.00014996,2]
[424828368,1781190641000,-151.0,0.00014997,2]
[424828367,1781190641000,-151.0,0.00014997,2]
[424828380,1781190641000,-500.0,0.00014997,2]
[424828370,1781190641000,-292.29983244,0.00014997,2]
[424828373,1781190641000,-500.0,0.00014997,2]
[424828369,1781190641000,-500.0,0.00014997,2]
[424828375,1781190641000,-500.0,0.00014997,2]
[424828378,1781190641000,-500.0,0.00014997,2]
[424828372,1781190641000,-500.0,0.00014997,2]
[424828371,1781190641000,-500.0,0.00014997,2]
[424828332,1781190641000,-500.0,0.00014988,2]
[424828366,1781190641000,-151.0,0.00014997,2]
[424828334,1781190641000,-500.0,0.00014988,2]
[424828303,1781190641000,-2549.81500824,0.000149,2]
[424828340,1781190641000,-505.42825574,0.00014988,2]
[424828376,1781190641000,-500.0,0.00014997,2]
[424828313,1781190641000,-150.0,0.0001494,2]
[424828315,1781190641000,-150.0,0.00014948,2]
[424828317,1781190641000,-150.0,0.00014963,2]
[424828318,1781190641000,-172.99,0.00014974,2]
[424828307,1781190641000,-291.64660163,0.00014908,2]
[424828304,1781190641000,-168.91634944,0.00014903,2]
[424828306,1781190641000,-150.0,0.00014903,2]
[424828302,1781190641000,-2889.5799969,0.000149,2]
[424828309,1781190641000,-150.0,0.00014917,2]
[424828312,1781190641000,-500.0,0.00014925,2]
[424828319,1781190641000,-500.0,0.00014986,2]
[424828321,1781190641000,-500.0,0.00014986,2]
[424828320,1781190641000,-500.0,0.00014986,2]
[424828324,1781190641000,-208.1114482,0.00014986,2]
[424828322,1781190641000,-300.86,0.00014986,2]
[424828328,1781190641000,-289.90717118,0.00014986,2]
[424828330,1781190641000,-210.0975545,0.00014986,2]
[424828331,1781190641000,-269.96297294,0.00014986,2]
[424828326,1781190641000,-150.75812701,0.00014986,2]
[424828329,1781190641000,-279.86118902,0.00014986,2]
[424828327,1781190641000,-152.23806348,0.00014986,2]
[424828323,1781190641000,-248.12091066,0.00014986,2]
[424828325,1781190641000,-285.87761885,0.00014986,2]
[424828333,1781190641000,-500.0,0.00014988,2]
[424828343,1781190641000,-325.09226793,0.00014988,2]
[424828347,1781190641000,-500.0,0.00014988,2]
[424828349,1781190641000,-694.41,0.00014988,2]
[424828377,1781190641000,-500.0,0.00014997,2]
[424828316,1781190641000,-6954.0,0.00014959,2]
[424828381,1781190641000,-500.0,0.00014997,2]
[424828415,1781190641000,-500.0,0.00014997,2]
[424828416,1781190641000,-500.0,0.00014997,2]
[424828413,1781190641000,-500.0,0.00014997,2]
[424828417,1781190641000,-500.0,0.00014997,2]
[424828419,1781190641000,-500.0,0.00014997,2]
[424828418,1781190641000,-457.12873569,0.00014997,2]
[424828428,1781190641000,-173336.4060185,0.00014998,2]
[424828427,1781190641000,-501.56858515,0.00014998,2]
[424828429,1781190641000,-500.0,0.00014998,2]
[424828420,1781190641000,-503.62,0.00014997,2]
[424828422,1781190641000,-503.62,0.00014997,2]
[424828426,1781190641000,-2351.4442078,0.00014998,2]
[424828424,1781190641000,-500.0,0.00014998,2]
[424828425,1781190641000,-760914.7420549,0.00014998,2]
[424828423,1781190641000,-503.62,0.00014997,2]
[424828430,1781190641000,-500.0,0.00014998,2]
[424828432,1781190641000,-500.0,0.00014998,2]
[424828434,1781190641000,-1123.58,0.00014998,2]
[424828435,1781190641000,-803.3,0.00014998,2]
[424828436,1781190641000,-500.0,0.00014998,2]
[424828431,1781190641000,-500.0,0.00014998,2]
[424828433,1781190641000,-500.0,0.00014998,2]
[424828440,1781190641000,-1488.29296832,0.00014999,5]
[424828439,1781190641000,-1488.29296832,0.00014999,5]
[424828437,1781190641000,-171.51496798,0.00014999,2]
[424828438,1781190641000,-1488.29296832,0.00014999,5]
[424828379,1781190641000,-500.0,0.00014997,2]
[424828414,1781190641000,-500.0,0.00014997,2]
[424828412,1781190641000,-500.0,0.00014997,2]
[424828421,1781190641000,-503.62,0.00014997,2]
[424828406,1781190641000,-500.0,0.00014997,2]
[424828392,1781190641000,-500.0,0.00014997,2]
[424828410,1781190641000,-500.0,0.00014997,2]
[424828390,1781190641000,-500.0,0.00014997,2]
[424828389,1781190641000,-500.0,0.00014997,2]
[424828388,1781190641000,-500.0,0.00014997,2]
[424828386,1781190641000,-500.0,0.00014997,2]
[424828383,1781190641000,-500.0,0.00014997,2]
[424828387,1781190641000,-500.0,0.00014997,2]
[424828382,1781190641000,-500.0,0.00014997,2]
[424828384,1781190641000,-249.71012285,0.00014997,2]
[424828391,1781190641000,-418.17837495,0.00014997,2]
[424828394,1781190641000,-500.0,0.00014997,2]
[424828404,1781190641000,-150.0,0.00014997,2]
[424828399,1781190641000,-500.0,0.00014997,2]
[424828385,1781190641000,-500.0,0.00014997,2]
[424828395,1781190641000,-500.0,0.00014997,2]
[424828411,1781190641000,-500.0,0.00014997,2]
[424828396,1781190641000,-500.0,0.00014997,2]
[424828407,1781190641000,-500.0,0.00014997,2]
[424828408,1781190641000,-500.0,0.00014997,2]
[424828405,1781190641000,-500.0,0.00014997,2]
[424828398,1781190641000,-500.0,0.00014997,2]
[424828402,1781190641000,-694.41,0.00014997,2]
[424828409,1781190641000,-500.0,0.00014997,2]
[424828401,1781190641000,-694.41,0.00014997,2]
[424828403,1781190641000,-694.41,0.00014997,2]
[424828393,1781190641000,-500.0,0.00014997,2]
[424828397,1781190641000,-500.0,0.00014997,2]
[424828400,1781190641000,-694.41,0.00014997,2]
[424828487,1781190642000,-500.0,0.00014999,2]
[424828484,1781190642000,-500.0,0.00014999,2]
[424828483,1781190642000,-500.0,0.00014999,2]
[424828480,1781190642000,-500.0,0.00014999,2]
[424828476,1781190642000,-500.0,0.00014999,2]
[424828474,1781190642000,-500.0,0.00014999,2]
[424828475,1781190642000,-500.0,0.00014999,2]
[424828477,1781190642000,-500.0,0.00014999,2]
[424828471,1781190642000,-500.0,0.00014999,2]
[424828470,1781190642000,-500.0,0.00014999,2]
[424828482,1781190642000,-500.0,0.00014999,2]
[424828469,1781190642000,-500.0,0.00014999,2]
[424828481,1781190642000,-578.62265933,0.00014999,2]
[424828508,1781190642000,-500.0,0.00014999,2]
[424828488,1781190642000,-500.0,0.00014999,2]
[424828485,1781190642000,-500.0,0.00014999,2]
[424828486,1781190642000,-500.0,0.00014999,2]
[424828489,1781190642000,-500.0,0.00014999,2]
[424828492,1781190642000,-500.0,0.00014999,2]
[424828505,1781190642000,-500.0,0.00014999,2]
[424828507,1781190642000,-500.0,0.00014999,2]
[424828511,1781190642000,-500.0,0.00014999,2]
[424828509,1781190642000,-500.0,0.00014999,2]
[424828513,1781190642000,-632.16,0.00014999,2]
[424828510,1781190642000,-500.0,0.00014999,2]
[424828512,1781190642000,-500.0,0.00014999,2]
[424828472,1781190642000,-500.0,0.00014999,2]
[424828490,1781190642000,-500.0,0.00014999,2]
[424828473,1781190642000,-621.19,0.00014999,2]
[424828441,1781190642000,-1488.29296832,0.00014999,5]
[424828467,1781190642000,-500.0,0.00014999,2]
[424828514,1781190642000,-500.0,0.00014999,2]
[424828454,1781190642000,-500.0,0.00014999,2]
[424828446,1781190642000,-1488.29296832,0.00014999,5]
[424828450,1781190642000,-1488.29296832,0.00014999,5]
[424828449,1781190642000,-1488.29296832,0.00014999,5]
[424828453,1781190642000,-500.0,0.00014999,2]
[424828445,1781190642000,-1488.29296832,0.00014999,5]
[424828444,1781190642000,-1488.29296832,0.00014999,5]
[424828448,1781190642000,-1488.29296827,0.00014999,5]
[424828451,1781190642000,-500.0,0.00014999,2]
[424828447,1781190642000,-1488.29296832,0.00014999,5]
[424828442,1781190642000,-1488.29296832,0.00014999,5]
[424828443,1781190642000,-199.48738674,0.00014999,5]
[424828478,1781190642000,-500.0,0.00014999,2]
[424828452,1781190642000,-500.0,0.00014999,2]
[424828457,1781190642000,-500.0,0.00014999,2]
[424828461,1781190642000,-500.0,0.00014999,2]
[424828456,1781190642000,-500.0,0.00014999,2]
[424828465,1781190642000,-500.0,0.00014999,2]
[424828463,1781190642000,-500.0,0.00014999,2]
[424828464,1781190642000,-500.0,0.00014999,2]
[424828459,1781190642000,-500.0,0.00014999,2]
[424828460,1781190642000,-500.0,0.00014999,2]
[424828458,1781190642000,-500.0,0.00014999,2]
[424828462,1781190642000,-500.0,0.00014999,2]
[424828466,1781190642000,-500.0,0.00014999,2]
[424828468,1781190642000,-500.0,0.00014999,2]
[424828479,1781190642000,-500.0,0.00014999,2]
[424828455,1781190642000,-500.0,0.00014999,2]
[424828499,1781190642000,-500.0,0.00014999,2]
[424828518,1781190642000,-500.0,0.00014999,2]
[424828497,1781190642000,-500.0,0.00014999,2]
[424828559,1781190642000,-500.0,0.00014999,2]
[424828555,1781190642000,-803.3,0.00014999,2]
[424828557,1781190642000,-321.97904193,0.00014999,2]
[424828556,1781190642000,-803.53036356,0.00014999,2]
[424828552,1781190642000,-803.3,0.00014999,2]
[424828561,1781190642000,-500.0,0.00014999,2]
[424828570,1781190642000,-694.41,0.00014999,2]
[424828569,1781190642000,-694.41,0.00014999,2]
[424828571,1781190642000,-694.41,0.00014999,2]
[424828560,1781190642000,-500.0,0.00014999,2]
[424828562,1781190642000,-185.2409854,0.00014999,2]
[424828563,1781190642000,-500.0,0.00014999,2]
[424828565,1781190642000,-348.71008799,0.00014999,2]
[424828566,1781190642000,-694.41,0.00014999,2]
[424828564,1781190642000,-500.0,0.00014999,2]
[424828568,1781190642000,-694.41,0.00014999,2]
[424828567,1781190642000,-694.41,0.00014999,2]
[424828572,1781190642000,-694.41,0.00014999,2]
[424828574,1781190642000,-694.41,0.00014999,2]
[424828575,1781190642000,-694.41,0.00014999,2]
[424828577,1781190642000,-694.41,0.00014999,2]
[424828494,1781190642000,-550.80626089,0.00014999,2]
[424828576,1781190642000,-694.41,0.00014999,2]
[424828573,1781190642000,-694.41,0.00014999,2]
[424828581,1781190642000,-694.42379386,0.00014999,2]
[424828578,1781190642000,-694.41,0.00014999,2]
[424828580,1781190642000,-694.41,0.00014999,2]
[424828558,1781190642000,-500.0,0.00014999,2]
[424828554,1781190642000,-803.3,0.00014999,2]
[424828579,1781190642000,-694.41,0.00014999,2]
[424828553,1781190642000,-803.3,0.00014999,2]
[424828551,1781190642000,-803.3,0.00014999,2]
[424828502,1781190642000,-500.0,0.00014999,2]
[424828516,1781190642000,-500.0,0.00014999,2]
[424828525,1781190642000,-1123.58,0.00014999,2]
[424828519,1781190642000,-500.0,0.00014999,2]
[424828527,1781190642000,-1123.58,0.00014999,2]
[424828524,1781190642000,-1123.58,0.00014999,2]
[424828521,1781190642000,-234.0,0.00014999,2]
[424828526,1781190642000,-1123.58,0.00014999,2]
[424828520,1781190642000,-500.0,0.00014999,2]
[424828523,1781190642000,-1123.58,0.00014999,2]
[424828522,1781190642000,-1123.58,0.00014999,2]
[424828529,1781190642000,-1123.58,0.00014999,2]
[424828544,1781190642000,-803.3,0.00014999,2]
[424828517,1781190642000,-500.0,0.00014999,2]
[424828539,1781190642000,-803.3,0.00014999,2]
[424828543,1781190642000,-1123.58,0.00014999,2]
[424828550,1781190642000,-803.3,0.00014999,2]
[424828535,1781190642000,-1123.58,0.00014999,2]
[424828537,1781190642000,-1123.58,0.00014999,2]
[424828533,1781190642000,-1123.58,0.00014999,2]
[424828548,1781190642000,-803.3,0.00014999,2]
[424828541,1781190642000,-1123.58,0.00014999,2]
[424828542,1781190642000,-803.3,0.00014999,2]
[424828546,1781190642000,-803.3,0.00014999,2]
[424828547,1781190642000,-803.3,0.00014999,2]
[424828549,1781190642000,-803.3,0.00014999,2]
[424828530,1781190642000,-1123.58,0.00014999,2]
[424828545,1781190642000,-1123.73944383,0.00014999,2]
[424828603,1781190643000,-500.0,0.00014999,2]
[424828606,1781190643000,-500.0,0.00014999,2]
[424828611,1781190643000,-500.0,0.00014999,2]
[424828621,1781190643000,-500.0,0.00014999,2]
[424828622,1781190643000,-500.0,0.00014999,2]
[424828612,1781190643000,-500.0,0.00014999,2]
[424828614,1781190643000,-500.0,0.00014999,2]
[424828613,1781190643000,-500.0,0.00014999,2]
[424828617,1781190643000,-500.0,0.00014999,2]
[424828610,1781190643000,-500.0,0.00014999,2]
[424828623,1781190643000,-500.0,0.00014999,2]
[424828619,1781190643000,-500.0,0.00014999,2]
[424828620,1781190643000,-500.0,0.00014999,2]
[424828616,1781190643000,-500.0,0.00014999,2]
[424828615,1781190643000,-500.0,0.00014999,2]
[424828627,1781190643000,-500.0,0.00014999,2]
[424828626,1781190643000,-500.0,0.00014999,2]
[424828625,1781190643000,-500.0,0.00014999,2]
[424828624,1781190643000,-500.0,0.00014999,2]
[424828628,1781190643000,-500.0,0.00014999,2]
[424828605,1781190643000,-500.0,0.00014999,2]
[424828618,1781190643000,-500.0,0.00014999,2]
[424828602,1781190643000,-500.0,0.00014999,2]
[424828595,1781190643000,-500.0,0.00014999,2]
[424828609,1781190643000,-500.0,0.00014999,2]